{"text_format":"3","workbook":"xlsx","n_sheets":3,"sheets":["Dnevni raspored","Planer događaja","Vremenski intervali"],"not_rendered":{"defined_names":21},"read":"whole","date_system":"1900"}

{"sheet":"Dnevni raspored","index":0,"n_rows":76,"n_cols":13,"rows_kept":76,"merged":[[0,1,0,2],[1,1,5,2],[2,12,4,12],[3,7,4,7],[5,12,7,12],[6,1,8,2],[8,12,10,12],[9,7,10,7],[10,1,10,2],[11,12,13,12],[14,12,16,12],[15,7,16,7],[17,12,19,12],[18,1,18,2],[20,12,22,12],[21,7,22,7],[23,12,25,12],[24,1,24,2],[25,1,25,2],[26,7,27,7],[26,12,28,12],[29,12,31,12],[31,7,32,7],[32,12,34,12]]}
[null,"Dnevni raspored"]
[null,{"$f":"IFERROR(DAY(VriDat),\"\")","v":20},null,null,"Vrijeme",{"$f":"IFERROR(UPPER(TEXT(DATE(GodinaIzvješća,BrojMjeseca,DanIzvješća),\"d mmmm yyyy\")),\"\")","v":"20 JUNE 2022"},null,"LETIMIČAN POGLED NA TJEDAN",{"$nulls":3},"BILJEŠKE / POPIS ZADATAKA"]
[{"$nulls":4},"Vrijeme","Opis",null,{"$f":"IFERROR(TEXT(DATEVALUE(VriDat)+1,\"dddd\"),\"\")","v":"Tuesday"},{"$f":"IFERROR(INDEX(PlanerDogađaja[],MATCH($H$6&\"|\"&ROW(A1),PlanerDogađaja[JEDINSTVENA VRIJEDNOST (IZRAČUNATA)],0),2),\"\")","v":""},{"$f":"IFERROR(INDEX(PlanerDogađaja[],MATCH($H$6&\"|\"&ROW(A1),PlanerDogađaja[JEDINSTVENA VRIJEDNOST (IZRAČUNATA)],0),3),\"\")","v":""},null,null,"Pokupiti odjeću u kemijskoj čistionici"]
[{"$nulls":4},{"$f":"'Vremenski intervali'!E3","v":"06:00:00"},{"$f":"IFERROR(INDEX(PlanerDogađaja[],MATCH(DATEVALUE(VriDat)&DnevniRaspored[[#This Row],[Vrijeme]],TraženjeDatumaIVremena,0),3),\"\")","v":"Buđenje"},null,{"$f":"IFERROR(TEXT(DATEVALUE(VriDat)+1,\"d\"),\"\")","v":"21"},{"$f":"IFERROR(INDEX(PlanerDogađaja[],MATCH($H$6&\"|\"&ROW(A2),PlanerDogađaja[JEDINSTVENA VRIJEDNOST (IZRAČUNATA)],0),2),\"\")","v":"06:30:00"},{"$f":"IFERROR(INDEX(PlanerDogađaja[],MATCH($H$6&\"|\"&ROW(A2),PlanerDogađaja[JEDINSTVENA VRIJEDNOST (IZRAČUNATA)],0),3),\"\")","v":"Doručak"}]
[{"$nulls":4},{"$f":"'Vremenski intervali'!E4","v":"06:15:00"},{"$f":"IFERROR(INDEX(PlanerDogađaja[],MATCH(DATEVALUE(VriDat)&DnevniRaspored[[#This Row],[Vrijeme]],TraženjeDatumaIVremena,0),3),\"\")","v":""},null,null,{"$f":"IFERROR(INDEX(PlanerDogađaja[],MATCH($H$6&\"|\"&ROW(A3),PlanerDogađaja[JEDINSTVENA VRIJEDNOST (IZRAČUNATA)],0),2),\"\")","v":""},{"$f":"IFERROR(INDEX(PlanerDogađaja[],MATCH($H$6&\"|\"&ROW(A3),PlanerDogađaja[JEDINSTVENA VRIJEDNOST (IZRAČUNATA)],0),3),\"\")","v":""}]
[{"$nulls":4},{"$f":"'Vremenski intervali'!E5","v":"06:30:00"},{"$f":"IFERROR(INDEX(PlanerDogađaja[],MATCH(DATEVALUE(VriDat)&DnevniRaspored[[#This Row],[Vrijeme]],TraženjeDatumaIVremena,0),3),\"\")","v":"Tuširanje"},null,{"$f":"IFERROR(VriDat+1,\"\")","v":"2022-06-21"},{"$f":"IFERROR(INDEX(PlanerDogađaja[],MATCH($H$6&\"|\"&ROW(A4),PlanerDogađaja[JEDINSTVENA VRIJEDNOST (IZRAČUNATA)],0),2),\"\")","v":""},{"$f":"IFERROR(INDEX(PlanerDogađaja[],MATCH($H$6&\"|\"&ROW(A4),PlanerDogađaja[JEDINSTVENA VRIJEDNOST (IZRAČUNATA)],0),3),\"\")","v":""},null,null,"Nazvati kabelskog operatera"]
[null,{"$f":"IFERROR(TEXT(VriDat,\"dddd\"),\"\")","v":"Monday"},null,null,{"$f":"'Vremenski intervali'!E6","v":"06:45:00"},{"$f":"IFERROR(INDEX(PlanerDogađaja[],MATCH(DATEVALUE(VriDat)&DnevniRaspored[[#This Row],[Vrijeme]],TraženjeDatumaIVremena,0),3),\"\")","v":""},null,null,{"$f":"IFERROR(INDEX(PlanerDogađaja[],MATCH($H$6&\"|\"&ROW(A5),PlanerDogađaja[JEDINSTVENA VRIJEDNOST (IZRAČUNATA)],0),2),\"\")","v":""},{"$f":"IFERROR(INDEX(PlanerDogađaja[],MATCH($H$6&\"|\"&ROW(A5),PlanerDogađaja[JEDINSTVENA VRIJEDNOST (IZRAČUNATA)],0),3),\"\")","v":""}]
[{"$nulls":4},{"$f":"'Vremenski intervali'!E7","v":"07:00:00"},{"$f":"IFERROR(INDEX(PlanerDogađaja[],MATCH(DATEVALUE(VriDat)&DnevniRaspored[[#This Row],[Vrijeme]],TraženjeDatumaIVremena,0),3),\"\")","v":""},null,null,{"$f":"IFERROR(INDEX(PlanerDogađaja[],MATCH($H$6&\"|\"&ROW(A6),PlanerDogađaja[JEDINSTVENA VRIJEDNOST (IZRAČUNATA)],0),2),\"\")","v":""},{"$f":"IFERROR(INDEX(PlanerDogađaja[],MATCH($H$6&\"|\"&ROW(A6),PlanerDogađaja[JEDINSTVENA VRIJEDNOST (IZRAČUNATA)],0),3),\"\")","v":""}]
[{"$nulls":4},{"$f":"'Vremenski intervali'!E8","v":"07:15:00"},{"$f":"IFERROR(INDEX(PlanerDogađaja[],MATCH(DATEVALUE(VriDat)&DnevniRaspored[[#This Row],[Vrijeme]],TraženjeDatumaIVremena,0),3),\"\")","v":""},null,{"$f":"IFERROR(TEXT(DATEVALUE(VriDat)+2,\"dddd\"),\"\")","v":"Wednesday"},{"$f":"IFERROR(INDEX(PlanerDogađaja[],MATCH($H$12&\"|\"&ROW(A1),PlanerDogađaja[JEDINSTVENA VRIJEDNOST (IZRAČUNATA)],0),2),\"\")","v":""},{"$f":"IFERROR(INDEX(PlanerDogađaja[],MATCH($H$12&\"|\"&ROW(A1),PlanerDogađaja[JEDINSTVENA VRIJEDNOST (IZRAČUNATA)],0),3),\"\")","v":""}]
[{"$nulls":4},{"$f":"'Vremenski intervali'!E9","v":"07:30:00"},{"$f":"IFERROR(INDEX(PlanerDogađaja[],MATCH(DATEVALUE(VriDat)&DnevniRaspored[[#This Row],[Vrijeme]],TraženjeDatumaIVremena,0),3),\"\")","v":"Odlazak na posao"},null,{"$f":"IFERROR(TEXT(DATEVALUE(VriDat)+2,\"d\"),\"\")","v":"22"},{"$f":"IFERROR(INDEX(PlanerDogađaja[],MATCH($H$12&\"|\"&ROW(A2),PlanerDogađaja[JEDINSTVENA VRIJEDNOST (IZRAČUNATA)],0),2),\"\")","v":""},{"$f":"IFERROR(INDEX(PlanerDogađaja[],MATCH($H$12&\"|\"&ROW(A2),PlanerDogađaja[JEDINSTVENA VRIJEDNOST (IZRAČUNATA)],0),3),\"\")","v":""}]
[null,"PRIKAZ RASPOREDA",null,null,{"$f":"'Vremenski intervali'!E10","v":"07:45:00"},{"$f":"IFERROR(INDEX(PlanerDogađaja[],MATCH(DATEVALUE(VriDat)&DnevniRaspored[[#This Row],[Vrijeme]],TraženjeDatumaIVremena,0),3),\"\")","v":""},null,null,{"$f":"IFERROR(INDEX(PlanerDogađaja[],MATCH($H$12&\"|\"&ROW(A3),PlanerDogađaja[JEDINSTVENA VRIJEDNOST (IZRAČUNATA)],0),2),\"\")","v":""},{"$f":"IFERROR(INDEX(PlanerDogađaja[],MATCH($H$12&\"|\"&ROW(A3),PlanerDogađaja[JEDINSTVENA VRIJEDNOST (IZRAČUNATA)],0),3),\"\")","v":""}]
[{"$nulls":4},{"$f":"'Vremenski intervali'!E11","v":"08:00:00"},{"$f":"IFERROR(INDEX(PlanerDogađaja[],MATCH(DATEVALUE(VriDat)&DnevniRaspored[[#This Row],[Vrijeme]],TraženjeDatumaIVremena,0),3),\"\")","v":"Početak smjene"},null,{"$f":"IFERROR(VriDat+2,\"\")","v":"2022-06-22"},{"$f":"IFERROR(INDEX(PlanerDogađaja[],MATCH($H$12&\"|\"&ROW(A4),PlanerDogađaja[JEDINSTVENA VRIJEDNOST (IZRAČUNATA)],0),2),\"\")","v":""},{"$f":"IFERROR(INDEX(PlanerDogađaja[],MATCH($H$12&\"|\"&ROW(A4),PlanerDogađaja[JEDINSTVENA VRIJEDNOST (IZRAČUNATA)],0),3),\"\")","v":""}]
[null,"Godina",null,null,{"$f":"'Vremenski intervali'!E12","v":"08:15:00"},{"$f":"IFERROR(INDEX(PlanerDogađaja[],MATCH(DATEVALUE(VriDat)&DnevniRaspored[[#This Row],[Vrijeme]],TraženjeDatumaIVremena,0),3),\"\")","v":""},null,null,{"$f":"IFERROR(INDEX(PlanerDogađaja[],MATCH($H$12&\"|\"&ROW(A5),PlanerDogađaja[JEDINSTVENA VRIJEDNOST (IZRAČUNATA)],0),2),\"\")","v":""},{"$f":"IFERROR(INDEX(PlanerDogađaja[],MATCH($H$12&\"|\"&ROW(A5),PlanerDogađaja[JEDINSTVENA VRIJEDNOST (IZRAČUNATA)],0),3),\"\")","v":""}]
[{"$nulls":4},{"$f":"'Vremenski intervali'!E13","v":"08:30:00"},{"$f":"IFERROR(INDEX(PlanerDogađaja[],MATCH(DATEVALUE(VriDat)&DnevniRaspored[[#This Row],[Vrijeme]],TraženjeDatumaIVremena,0),3),\"\")","v":""},null,null,{"$f":"IFERROR(INDEX(PlanerDogađaja[],MATCH($H$12&\"|\"&ROW(A6),PlanerDogađaja[JEDINSTVENA VRIJEDNOST (IZRAČUNATA)],0),2),\"\")","v":""},{"$f":"IFERROR(INDEX(PlanerDogađaja[],MATCH($H$12&\"|\"&ROW(A6),PlanerDogađaja[JEDINSTVENA VRIJEDNOST (IZRAČUNATA)],0),3),\"\")","v":""}]
[null,"Mjesec",null,null,{"$f":"'Vremenski intervali'!E14","v":"08:45:00"},{"$f":"IFERROR(INDEX(PlanerDogađaja[],MATCH(DATEVALUE(VriDat)&DnevniRaspored[[#This Row],[Vrijeme]],TraženjeDatumaIVremena,0),3),\"\")","v":""},null,{"$f":"IFERROR(TEXT(DATEVALUE(VriDat)+3,\"dddd\"),\"\")","v":"Thursday"},{"$f":"IFERROR(INDEX(PlanerDogađaja[],MATCH($H$18&\"|\"&ROW(A1),PlanerDogađaja[JEDINSTVENA VRIJEDNOST (IZRAČUNATA)],0),2),\"\")","v":""},{"$f":"IFERROR(INDEX(PlanerDogađaja[],MATCH($H$18&\"|\"&ROW(A1),PlanerDogađaja[JEDINSTVENA VRIJEDNOST (IZRAČUNATA)],0),3),\"\")","v":""}]
[{"$nulls":4},{"$f":"'Vremenski intervali'!E15","v":"09:00:00"},{"$f":"IFERROR(INDEX(PlanerDogađaja[],MATCH(DATEVALUE(VriDat)&DnevniRaspored[[#This Row],[Vrijeme]],TraženjeDatumaIVremena,0),3),\"\")","v":""},null,{"$f":"IFERROR(TEXT(DATEVALUE(VriDat)+3,\"d\"),\"\")","v":"23"},{"$f":"IFERROR(INDEX(PlanerDogađaja[],MATCH($H$18&\"|\"&ROW(A2),PlanerDogađaja[JEDINSTVENA VRIJEDNOST (IZRAČUNATA)],0),2),\"\")","v":""},{"$f":"IFERROR(INDEX(PlanerDogađaja[],MATCH($H$18&\"|\"&ROW(A2),PlanerDogađaja[JEDINSTVENA VRIJEDNOST (IZRAČUNATA)],0),3),\"\")","v":""}]
[null,"Dan",null,null,{"$f":"'Vremenski intervali'!E16","v":"09:15:00"},{"$f":"IFERROR(INDEX(PlanerDogađaja[],MATCH(DATEVALUE(VriDat)&DnevniRaspored[[#This Row],[Vrijeme]],TraženjeDatumaIVremena,0),3),\"\")","v":""},null,null,{"$f":"IFERROR(INDEX(PlanerDogađaja[],MATCH($H$18&\"|\"&ROW(A3),PlanerDogađaja[JEDINSTVENA VRIJEDNOST (IZRAČUNATA)],0),2),\"\")","v":""},{"$f":"IFERROR(INDEX(PlanerDogađaja[],MATCH($H$18&\"|\"&ROW(A3),PlanerDogađaja[JEDINSTVENA VRIJEDNOST (IZRAČUNATA)],0),3),\"\")","v":""}]
[{"$nulls":4},{"$f":"'Vremenski intervali'!E17","v":"09:30:00"},{"$f":"IFERROR(INDEX(PlanerDogađaja[],MATCH(DATEVALUE(VriDat)&DnevniRaspored[[#This Row],[Vrijeme]],TraženjeDatumaIVremena,0),3),\"\")","v":""},null,{"$f":"IFERROR(VriDat+3,\"\")","v":"2022-06-23"},{"$f":"IFERROR(INDEX(PlanerDogađaja[],MATCH($H$18&\"|\"&ROW(A4),PlanerDogađaja[JEDINSTVENA VRIJEDNOST (IZRAČUNATA)],0),2),\"\")","v":""},{"$f":"IFERROR(INDEX(PlanerDogađaja[],MATCH($H$18&\"|\"&ROW(A4),PlanerDogađaja[JEDINSTVENA VRIJEDNOST (IZRAČUNATA)],0),3),\"\")","v":""}]
[null,"UREĐIVANJE RASPOREDA",null,null,{"$f":"'Vremenski intervali'!E18","v":"09:45:00"},{"$f":"IFERROR(INDEX(PlanerDogađaja[],MATCH(DATEVALUE(VriDat)&DnevniRaspored[[#This Row],[Vrijeme]],TraženjeDatumaIVremena,0),3),\"\")","v":""},null,null,{"$f":"IFERROR(INDEX(PlanerDogađaja[],MATCH($H$18&\"|\"&ROW(A5),PlanerDogađaja[JEDINSTVENA VRIJEDNOST (IZRAČUNATA)],0),2),\"\")","v":""},{"$f":"IFERROR(INDEX(PlanerDogađaja[],MATCH($H$18&\"|\"&ROW(A5),PlanerDogađaja[JEDINSTVENA VRIJEDNOST (IZRAČUNATA)],0),3),\"\")","v":""}]
[{"$nulls":4},{"$f":"'Vremenski intervali'!E19","v":"10:00:00"},{"$f":"IFERROR(INDEX(PlanerDogađaja[],MATCH(DATEVALUE(VriDat)&DnevniRaspored[[#This Row],[Vrijeme]],TraženjeDatumaIVremena,0),3),\"\")","v":"Pauza"},null,null,{"$f":"IFERROR(INDEX(PlanerDogađaja[],MATCH($H$18&\"|\"&ROW(A6),PlanerDogađaja[JEDINSTVENA VRIJEDNOST (IZRAČUNATA)],0),2),\"\")","v":""},{"$f":"IFERROR(INDEX(PlanerDogađaja[],MATCH($H$18&\"|\"&ROW(A6),PlanerDogađaja[JEDINSTVENA VRIJEDNOST (IZRAČUNATA)],0),3),\"\")","v":""}]
[null,"Odaberite da biste uredili vremenske intervale",null,null,{"$f":"'Vremenski intervali'!E20","v":"10:15:00"},{"$f":"IFERROR(INDEX(PlanerDogađaja[],MATCH(DATEVALUE(VriDat)&DnevniRaspored[[#This Row],[Vrijeme]],TraženjeDatumaIVremena,0),3),\"\")","v":""},null,{"$f":"IFERROR(TEXT(DATEVALUE(VriDat)+4,\"dddd\"),\"\")","v":"Friday"},{"$f":"IFERROR(INDEX(PlanerDogađaja[],MATCH($H$24&\"|\"&ROW(A1),PlanerDogađaja[JEDINSTVENA VRIJEDNOST (IZRAČUNATA)],0),2),\"\")","v":""},{"$f":"IFERROR(INDEX(PlanerDogađaja[],MATCH($H$24&\"|\"&ROW(A1),PlanerDogađaja[JEDINSTVENA VRIJEDNOST (IZRAČUNATA)],0),3),\"\")","v":""}]
[{"$nulls":4},{"$f":"'Vremenski intervali'!E21","v":"10:30:00"},{"$f":"IFERROR(INDEX(PlanerDogađaja[],MATCH(DATEVALUE(VriDat)&DnevniRaspored[[#This Row],[Vrijeme]],TraženjeDatumaIVremena,0),3),\"\")","v":""},null,{"$f":"IFERROR(TEXT(DATEVALUE(VriDat)+4,\"d\"),\"\")","v":"24"},{"$f":"IFERROR(INDEX(PlanerDogađaja[],MATCH($H$24&\"|\"&ROW(A2),PlanerDogađaja[JEDINSTVENA VRIJEDNOST (IZRAČUNATA)],0),2),\"\")","v":""},{"$f":"IFERROR(INDEX(PlanerDogađaja[],MATCH($H$24&\"|\"&ROW(A2),PlanerDogađaja[JEDINSTVENA VRIJEDNOST (IZRAČUNATA)],0),3),\"\")","v":""}]
[null,"Odaberite da biste dodali novi događaj",null,null,{"$f":"'Vremenski intervali'!E22","v":"10:45:00"},{"$f":"IFERROR(INDEX(PlanerDogađaja[],MATCH(DATEVALUE(VriDat)&DnevniRaspored[[#This Row],[Vrijeme]],TraženjeDatumaIVremena,0),3),\"\")","v":""},null,null,{"$f":"IFERROR(INDEX(PlanerDogađaja[],MATCH($H$24&\"|\"&ROW(A3),PlanerDogađaja[JEDINSTVENA VRIJEDNOST (IZRAČUNATA)],0),2),\"\")","v":""},{"$f":"IFERROR(INDEX(PlanerDogađaja[],MATCH($H$24&\"|\"&ROW(A3),PlanerDogađaja[JEDINSTVENA VRIJEDNOST (IZRAČUNATA)],0),3),\"\")","v":""}]
[{"$nulls":4},{"$f":"'Vremenski intervali'!E23","v":"11:00:00"},{"$f":"IFERROR(INDEX(PlanerDogađaja[],MATCH(DATEVALUE(VriDat)&DnevniRaspored[[#This Row],[Vrijeme]],TraženjeDatumaIVremena,0),3),\"\")","v":""},null,{"$f":"IFERROR(VriDat+4,\"\")","v":"2022-06-24"},{"$f":"IFERROR(INDEX(PlanerDogađaja[],MATCH($H$24&\"|\"&ROW(A4),PlanerDogađaja[JEDINSTVENA VRIJEDNOST (IZRAČUNATA)],0),2),\"\")","v":""},{"$f":"IFERROR(INDEX(PlanerDogađaja[],MATCH($H$24&\"|\"&ROW(A4),PlanerDogađaja[JEDINSTVENA VRIJEDNOST (IZRAČUNATA)],0),3),\"\")","v":""}]
[null,"ISTAKNUTO U RASPOREDU:",null,null,{"$f":"'Vremenski intervali'!E24","v":"11:15:00"},{"$f":"IFERROR(INDEX(PlanerDogađaja[],MATCH(DATEVALUE(VriDat)&DnevniRaspored[[#This Row],[Vrijeme]],TraženjeDatumaIVremena,0),3),\"\")","v":""},null,null,{"$f":"IFERROR(INDEX(PlanerDogađaja[],MATCH($H$24&\"|\"&ROW(A5),PlanerDogađaja[JEDINSTVENA VRIJEDNOST (IZRAČUNATA)],0),2),\"\")","v":""},{"$f":"IFERROR(INDEX(PlanerDogađaja[],MATCH($H$24&\"|\"&ROW(A5),PlanerDogađaja[JEDINSTVENA VRIJEDNOST (IZRAČUNATA)],0),3),\"\")","v":""}]
[null,"Pauza",null,null,{"$f":"'Vremenski intervali'!E25","v":"11:30:00"},{"$f":"IFERROR(INDEX(PlanerDogađaja[],MATCH(DATEVALUE(VriDat)&DnevniRaspored[[#This Row],[Vrijeme]],TraženjeDatumaIVremena,0),3),\"\")","v":""},null,{"$f":"IFERROR(TEXT(DATEVALUE(VriDat)+5,\"dddd\"),\"\")","v":"Saturday"},{"$f":"IFERROR(INDEX(PlanerDogađaja[],MATCH($H$29&\"|\"&ROW(A1),PlanerDogađaja[JEDINSTVENA VRIJEDNOST (IZRAČUNATA)],0),2),\"\")","v":""},{"$f":"IFERROR(INDEX(PlanerDogađaja[],MATCH($H$29&\"|\"&ROW(A1),PlanerDogađaja[JEDINSTVENA VRIJEDNOST (IZRAČUNATA)],0),3),\"\")","v":""}]
[{"$nulls":4},{"$f":"'Vremenski intervali'!E26","v":"11:45:00"},{"$f":"IFERROR(INDEX(PlanerDogađaja[],MATCH(DATEVALUE(VriDat)&DnevniRaspored[[#This Row],[Vrijeme]],TraženjeDatumaIVremena,0),3),\"\")","v":""},null,{"$f":"IFERROR(TEXT(DATEVALUE(VriDat)+5,\"d\"),\"\")","v":"25"},{"$f":"IFERROR(INDEX(PlanerDogađaja[],MATCH($H$29&\"|\"&ROW(A2),PlanerDogađaja[JEDINSTVENA VRIJEDNOST (IZRAČUNATA)],0),2),\"\")","v":""},{"$f":"IFERROR(INDEX(PlanerDogađaja[],MATCH($H$29&\"|\"&ROW(A2),PlanerDogađaja[JEDINSTVENA VRIJEDNOST (IZRAČUNATA)],0),3),\"\")","v":""}]
[{"$nulls":4},{"$f":"'Vremenski intervali'!E27","v":"12:00:00"},{"$f":"IFERROR(INDEX(PlanerDogađaja[],MATCH(DATEVALUE(VriDat)&DnevniRaspored[[#This Row],[Vrijeme]],TraženjeDatumaIVremena,0),3),\"\")","v":"Ručak"},null,null,{"$f":"IFERROR(INDEX(PlanerDogađaja[],MATCH($H$29&\"|\"&ROW(A3),PlanerDogađaja[JEDINSTVENA VRIJEDNOST (IZRAČUNATA)],0),2),\"\")","v":""},{"$f":"IFERROR(INDEX(PlanerDogađaja[],MATCH($H$29&\"|\"&ROW(A3),PlanerDogađaja[JEDINSTVENA VRIJEDNOST (IZRAČUNATA)],0),3),\"\")","v":""}]
[{"$nulls":4},{"$f":"'Vremenski intervali'!E28","v":"12:15:00"},{"$f":"IFERROR(INDEX(PlanerDogađaja[],MATCH(DATEVALUE(VriDat)&DnevniRaspored[[#This Row],[Vrijeme]],TraženjeDatumaIVremena,0),3),\"\")","v":""},null,{"$f":"IFERROR(VriDat+5,\"\")","v":"2022-06-25"},{"$f":"IFERROR(INDEX(PlanerDogađaja[],MATCH($H$29&\"|\"&ROW(A4),PlanerDogađaja[JEDINSTVENA VRIJEDNOST (IZRAČUNATA)],0),2),\"\")","v":""},{"$f":"IFERROR(INDEX(PlanerDogađaja[],MATCH($H$29&\"|\"&ROW(A4),PlanerDogađaja[JEDINSTVENA VRIJEDNOST (IZRAČUNATA)],0),3),\"\")","v":""}]
[{"$nulls":4},{"$f":"'Vremenski intervali'!E29","v":"12:30:00"},{"$f":"IFERROR(INDEX(PlanerDogađaja[],MATCH(DATEVALUE(VriDat)&DnevniRaspored[[#This Row],[Vrijeme]],TraženjeDatumaIVremena,0),3),\"\")","v":""},null,null,{"$f":"IFERROR(INDEX(PlanerDogađaja[],MATCH($H$29&\"|\"&ROW(A5),PlanerDogađaja[JEDINSTVENA VRIJEDNOST (IZRAČUNATA)],0),2),\"\")","v":""},{"$f":"IFERROR(INDEX(PlanerDogađaja[],MATCH($H$29&\"|\"&ROW(A5),PlanerDogađaja[JEDINSTVENA VRIJEDNOST (IZRAČUNATA)],0),3),\"\")","v":""}]
[{"$nulls":4},{"$f":"'Vremenski intervali'!E30","v":"12:45:00"},{"$f":"IFERROR(INDEX(PlanerDogađaja[],MATCH(DATEVALUE(VriDat)&DnevniRaspored[[#This Row],[Vrijeme]],TraženjeDatumaIVremena,0),3),\"\")","v":""},null,{"$f":"IFERROR(TEXT(DATEVALUE(VriDat)+6,\"dddd\"),\"\")","v":"Sunday"},{"$f":"IFERROR(INDEX(PlanerDogađaja[],MATCH($H$34&\"|\"&ROW(A1),PlanerDogađaja[JEDINSTVENA VRIJEDNOST (IZRAČUNATA)],0),2),\"\")","v":""},{"$f":"IFERROR(INDEX(PlanerDogađaja[],MATCH($H$34&\"|\"&ROW(A1),PlanerDogađaja[JEDINSTVENA VRIJEDNOST (IZRAČUNATA)],0),3),\"\")","v":""}]
[{"$nulls":4},{"$f":"'Vremenski intervali'!E31","v":"13:00:00"},{"$f":"IFERROR(INDEX(PlanerDogađaja[],MATCH(DATEVALUE(VriDat)&DnevniRaspored[[#This Row],[Vrijeme]],TraženjeDatumaIVremena,0),3),\"\")","v":""},null,{"$f":"IFERROR(TEXT(DATEVALUE(VriDat)+6,\"d\"),\"\")","v":"26"},{"$f":"IFERROR(INDEX(PlanerDogađaja[],MATCH($H$34&\"|\"&ROW(A2),PlanerDogađaja[JEDINSTVENA VRIJEDNOST (IZRAČUNATA)],0),2),\"\")","v":""},{"$f":"IFERROR(INDEX(PlanerDogađaja[],MATCH($H$34&\"|\"&ROW(A2),PlanerDogađaja[JEDINSTVENA VRIJEDNOST (IZRAČUNATA)],0),3),\"\")","v":""}]
[{"$nulls":4},{"$f":"'Vremenski intervali'!E32","v":"13:15:00"},{"$f":"IFERROR(INDEX(PlanerDogađaja[],MATCH(DATEVALUE(VriDat)&DnevniRaspored[[#This Row],[Vrijeme]],TraženjeDatumaIVremena,0),3),\"\")","v":""},null,null,{"$f":"IFERROR(INDEX(PlanerDogađaja[],MATCH($H$34&\"|\"&ROW(A3),PlanerDogađaja[JEDINSTVENA VRIJEDNOST (IZRAČUNATA)],0),2),\"\")","v":""},{"$f":"IFERROR(INDEX(PlanerDogađaja[],MATCH($H$34&\"|\"&ROW(A3),PlanerDogađaja[JEDINSTVENA VRIJEDNOST (IZRAČUNATA)],0),3),\"\")","v":""}]
[{"$nulls":4},{"$f":"'Vremenski intervali'!E33","v":"13:30:00"},{"$f":"IFERROR(INDEX(PlanerDogađaja[],MATCH(DATEVALUE(VriDat)&DnevniRaspored[[#This Row],[Vrijeme]],TraženjeDatumaIVremena,0),3),\"\")","v":"Zvati korporacijsko"},null,{"$f":"IFERROR(VriDat+6,\"\")","v":"2022-06-26"},{"$f":"IFERROR(INDEX(PlanerDogađaja[],MATCH($H$34&\"|\"&ROW(A4),PlanerDogađaja[JEDINSTVENA VRIJEDNOST (IZRAČUNATA)],0),2),\"\")","v":""},{"$f":"IFERROR(INDEX(PlanerDogađaja[],MATCH($H$34&\"|\"&ROW(A4),PlanerDogađaja[JEDINSTVENA VRIJEDNOST (IZRAČUNATA)],0),3),\"\")","v":""}]
[{"$nulls":4},{"$f":"'Vremenski intervali'!E34","v":"13:45:00"},{"$f":"IFERROR(INDEX(PlanerDogađaja[],MATCH(DATEVALUE(VriDat)&DnevniRaspored[[#This Row],[Vrijeme]],TraženjeDatumaIVremena,0),3),\"\")","v":""},null,null,{"$f":"IFERROR(INDEX(PlanerDogađaja[],MATCH($H$34&\"|\"&ROW(A5),PlanerDogađaja[JEDINSTVENA VRIJEDNOST (IZRAČUNATA)],0),2),\"\")","v":""},{"$f":"IFERROR(INDEX(PlanerDogađaja[],MATCH($H$34&\"|\"&ROW(A5),PlanerDogađaja[JEDINSTVENA VRIJEDNOST (IZRAČUNATA)],0),3),\"\")","v":""}]
[{"$nulls":4},{"$f":"'Vremenski intervali'!E35","v":"14:00:00"},{"$f":"IFERROR(INDEX(PlanerDogađaja[],MATCH(DATEVALUE(VriDat)&DnevniRaspored[[#This Row],[Vrijeme]],TraženjeDatumaIVremena,0),3),\"\")","v":""}]
[{"$nulls":4},{"$f":"'Vremenski intervali'!E36","v":"14:15:00"},{"$f":"IFERROR(INDEX(PlanerDogađaja[],MATCH(DATEVALUE(VriDat)&DnevniRaspored[[#This Row],[Vrijeme]],TraženjeDatumaIVremena,0),3),\"\")","v":""}]
[{"$nulls":4},{"$f":"'Vremenski intervali'!E37","v":"14:30:00"},{"$f":"IFERROR(INDEX(PlanerDogađaja[],MATCH(DATEVALUE(VriDat)&DnevniRaspored[[#This Row],[Vrijeme]],TraženjeDatumaIVremena,0),3),\"\")","v":""}]
[{"$nulls":4},{"$f":"'Vremenski intervali'!E38","v":"14:45:00"},{"$f":"IFERROR(INDEX(PlanerDogađaja[],MATCH(DATEVALUE(VriDat)&DnevniRaspored[[#This Row],[Vrijeme]],TraženjeDatumaIVremena,0),3),\"\")","v":""}]
[{"$nulls":4},{"$f":"'Vremenski intervali'!E39","v":"15:00:00"},{"$f":"IFERROR(INDEX(PlanerDogađaja[],MATCH(DATEVALUE(VriDat)&DnevniRaspored[[#This Row],[Vrijeme]],TraženjeDatumaIVremena,0),3),\"\")","v":"Pauza"}]
[{"$nulls":4},{"$f":"'Vremenski intervali'!E40","v":"15:15:00"},{"$f":"IFERROR(INDEX(PlanerDogađaja[],MATCH(DATEVALUE(VriDat)&DnevniRaspored[[#This Row],[Vrijeme]],TraženjeDatumaIVremena,0),3),\"\")","v":""}]
[{"$nulls":4},{"$f":"'Vremenski intervali'!E41","v":"15:30:00"},{"$f":"IFERROR(INDEX(PlanerDogađaja[],MATCH(DATEVALUE(VriDat)&DnevniRaspored[[#This Row],[Vrijeme]],TraženjeDatumaIVremena,0),3),\"\")","v":""}]
[{"$nulls":4},{"$f":"'Vremenski intervali'!E42","v":"15:45:00"},{"$f":"IFERROR(INDEX(PlanerDogađaja[],MATCH(DATEVALUE(VriDat)&DnevniRaspored[[#This Row],[Vrijeme]],TraženjeDatumaIVremena,0),3),\"\")","v":""}]
[{"$nulls":4},{"$f":"'Vremenski intervali'!E43","v":"16:00:00"},{"$f":"IFERROR(INDEX(PlanerDogađaja[],MATCH(DATEVALUE(VriDat)&DnevniRaspored[[#This Row],[Vrijeme]],TraženjeDatumaIVremena,0),3),\"\")","v":""}]
[{"$nulls":4},{"$f":"'Vremenski intervali'!E44","v":"16:15:00"},{"$f":"IFERROR(INDEX(PlanerDogađaja[],MATCH(DATEVALUE(VriDat)&DnevniRaspored[[#This Row],[Vrijeme]],TraženjeDatumaIVremena,0),3),\"\")","v":""}]
[{"$nulls":4},{"$f":"'Vremenski intervali'!E45","v":"16:30:00"},{"$f":"IFERROR(INDEX(PlanerDogađaja[],MATCH(DATEVALUE(VriDat)&DnevniRaspored[[#This Row],[Vrijeme]],TraženjeDatumaIVremena,0),3),\"\")","v":""}]
[{"$nulls":4},{"$f":"'Vremenski intervali'!E46","v":"16:45:00"},{"$f":"IFERROR(INDEX(PlanerDogađaja[],MATCH(DATEVALUE(VriDat)&DnevniRaspored[[#This Row],[Vrijeme]],TraženjeDatumaIVremena,0),3),\"\")","v":""}]
[{"$nulls":4},{"$f":"'Vremenski intervali'!E47","v":"17:00:00"},{"$f":"IFERROR(INDEX(PlanerDogađaja[],MATCH(DATEVALUE(VriDat)&DnevniRaspored[[#This Row],[Vrijeme]],TraženjeDatumaIVremena,0),3),\"\")","v":"Kuća"}]
[{"$nulls":4},{"$f":"'Vremenski intervali'!E48","v":"17:15:00"},{"$f":"IFERROR(INDEX(PlanerDogađaja[],MATCH(DATEVALUE(VriDat)&DnevniRaspored[[#This Row],[Vrijeme]],TraženjeDatumaIVremena,0),3),\"\")","v":""}]
[{"$nulls":4},{"$f":"'Vremenski intervali'!E49","v":"17:30:00"},{"$f":"IFERROR(INDEX(PlanerDogađaja[],MATCH(DATEVALUE(VriDat)&DnevniRaspored[[#This Row],[Vrijeme]],TraženjeDatumaIVremena,0),3),\"\")","v":""}]
[{"$nulls":4},{"$f":"'Vremenski intervali'!E50","v":"17:45:00"},{"$f":"IFERROR(INDEX(PlanerDogađaja[],MATCH(DATEVALUE(VriDat)&DnevniRaspored[[#This Row],[Vrijeme]],TraženjeDatumaIVremena,0),3),\"\")","v":""}]
[{"$nulls":4},{"$f":"'Vremenski intervali'!E51","v":"18:00:00"},{"$f":"IFERROR(INDEX(PlanerDogađaja[],MATCH(DATEVALUE(VriDat)&DnevniRaspored[[#This Row],[Vrijeme]],TraženjeDatumaIVremena,0),3),\"\")","v":"Nogometni trening"}]
[{"$nulls":4},{"$f":"'Vremenski intervali'!E52","v":"18:15:00"},{"$f":"IFERROR(INDEX(PlanerDogađaja[],MATCH(DATEVALUE(VriDat)&DnevniRaspored[[#This Row],[Vrijeme]],TraženjeDatumaIVremena,0),3),\"\")","v":""}]
[{"$nulls":4},{"$f":"'Vremenski intervali'!E53","v":"18:30:00"},{"$f":"IFERROR(INDEX(PlanerDogađaja[],MATCH(DATEVALUE(VriDat)&DnevniRaspored[[#This Row],[Vrijeme]],TraženjeDatumaIVremena,0),3),\"\")","v":""}]
[{"$nulls":4},{"$f":"'Vremenski intervali'!E54","v":"18:45:00"},{"$f":"IFERROR(INDEX(PlanerDogađaja[],MATCH(DATEVALUE(VriDat)&DnevniRaspored[[#This Row],[Vrijeme]],TraženjeDatumaIVremena,0),3),\"\")","v":""}]
[{"$nulls":4},{"$f":"'Vremenski intervali'!E55","v":"19:00:00"},{"$f":"IFERROR(INDEX(PlanerDogađaja[],MATCH(DATEVALUE(VriDat)&DnevniRaspored[[#This Row],[Vrijeme]],TraženjeDatumaIVremena,0),3),\"\")","v":""}]
[{"$nulls":4},{"$f":"'Vremenski intervali'!E56","v":"19:15:00"},{"$f":"IFERROR(INDEX(PlanerDogađaja[],MATCH(DATEVALUE(VriDat)&DnevniRaspored[[#This Row],[Vrijeme]],TraženjeDatumaIVremena,0),3),\"\")","v":""}]
[{"$nulls":4},{"$f":"'Vremenski intervali'!E57","v":"19:30:00"},{"$f":"IFERROR(INDEX(PlanerDogađaja[],MATCH(DATEVALUE(VriDat)&DnevniRaspored[[#This Row],[Vrijeme]],TraženjeDatumaIVremena,0),3),\"\")","v":""}]
[{"$nulls":4},{"$f":"'Vremenski intervali'!E58","v":"19:45:00"},{"$f":"IFERROR(INDEX(PlanerDogađaja[],MATCH(DATEVALUE(VriDat)&DnevniRaspored[[#This Row],[Vrijeme]],TraženjeDatumaIVremena,0),3),\"\")","v":""}]
[{"$nulls":4},{"$f":"'Vremenski intervali'!E59","v":"20:00:00"},{"$f":"IFERROR(INDEX(PlanerDogađaja[],MATCH(DATEVALUE(VriDat)&DnevniRaspored[[#This Row],[Vrijeme]],TraženjeDatumaIVremena,0),3),\"\")","v":""}]
[{"$nulls":4},{"$f":"'Vremenski intervali'!E60","v":"20:15:00"},{"$f":"IFERROR(INDEX(PlanerDogađaja[],MATCH(DATEVALUE(VriDat)&DnevniRaspored[[#This Row],[Vrijeme]],TraženjeDatumaIVremena,0),3),\"\")","v":""}]
[{"$nulls":4},{"$f":"'Vremenski intervali'!E61","v":"20:30:00"},{"$f":"IFERROR(INDEX(PlanerDogađaja[],MATCH(DATEVALUE(VriDat)&DnevniRaspored[[#This Row],[Vrijeme]],TraženjeDatumaIVremena,0),3),\"\")","v":""}]
[{"$nulls":4},{"$f":"'Vremenski intervali'!E62","v":"20:45:00"},{"$f":"IFERROR(INDEX(PlanerDogađaja[],MATCH(DATEVALUE(VriDat)&DnevniRaspored[[#This Row],[Vrijeme]],TraženjeDatumaIVremena,0),3),\"\")","v":""}]
[{"$nulls":4},{"$f":"'Vremenski intervali'!E63","v":"21:00:00"},{"$f":"IFERROR(INDEX(PlanerDogađaja[],MATCH(DATEVALUE(VriDat)&DnevniRaspored[[#This Row],[Vrijeme]],TraženjeDatumaIVremena,0),3),\"\")","v":""}]
[{"$nulls":4},{"$f":"'Vremenski intervali'!E64","v":""},{"$f":"IFERROR(INDEX(PlanerDogađaja[],MATCH(DATEVALUE(VriDat)&DnevniRaspored[[#This Row],[Vrijeme]],TraženjeDatumaIVremena,0),3),\"\")","v":""}]
[{"$nulls":4},{"$f":"'Vremenski intervali'!E65","v":""},{"$f":"IFERROR(INDEX(PlanerDogađaja[],MATCH(DATEVALUE(VriDat)&DnevniRaspored[[#This Row],[Vrijeme]],TraženjeDatumaIVremena,0),3),\"\")","v":""}]
[{"$nulls":4},{"$f":"'Vremenski intervali'!E66","v":""},{"$f":"IFERROR(INDEX(PlanerDogađaja[],MATCH(DATEVALUE(VriDat)&DnevniRaspored[[#This Row],[Vrijeme]],TraženjeDatumaIVremena,0),3),\"\")","v":""}]
[{"$nulls":4},{"$f":"'Vremenski intervali'!E67","v":""},{"$f":"IFERROR(INDEX(PlanerDogađaja[],MATCH(DATEVALUE(VriDat)&DnevniRaspored[[#This Row],[Vrijeme]],TraženjeDatumaIVremena,0),3),\"\")","v":""}]
[{"$nulls":4},{"$f":"'Vremenski intervali'!E68","v":""},{"$f":"IFERROR(INDEX(PlanerDogađaja[],MATCH(DATEVALUE(VriDat)&DnevniRaspored[[#This Row],[Vrijeme]],TraženjeDatumaIVremena,0),3),\"\")","v":""}]
[{"$nulls":4},{"$f":"'Vremenski intervali'!E69","v":""},{"$f":"IFERROR(INDEX(PlanerDogađaja[],MATCH(DATEVALUE(VriDat)&DnevniRaspored[[#This Row],[Vrijeme]],TraženjeDatumaIVremena,0),3),\"\")","v":""}]
[{"$nulls":4},{"$f":"'Vremenski intervali'!E70","v":""},{"$f":"IFERROR(INDEX(PlanerDogađaja[],MATCH(DATEVALUE(VriDat)&DnevniRaspored[[#This Row],[Vrijeme]],TraženjeDatumaIVremena,0),3),\"\")","v":""}]
[{"$nulls":4},{"$f":"'Vremenski intervali'!E71","v":""},{"$f":"IFERROR(INDEX(PlanerDogađaja[],MATCH(DATEVALUE(VriDat)&DnevniRaspored[[#This Row],[Vrijeme]],TraženjeDatumaIVremena,0),3),\"\")","v":""}]
[{"$nulls":4},{"$f":"'Vremenski intervali'!E72","v":""},{"$f":"IFERROR(INDEX(PlanerDogađaja[],MATCH(DATEVALUE(VriDat)&DnevniRaspored[[#This Row],[Vrijeme]],TraženjeDatumaIVremena,0),3),\"\")","v":""}]
[{"$nulls":4},{"$f":"'Vremenski intervali'!E73","v":""},{"$f":"IFERROR(INDEX(PlanerDogađaja[],MATCH(DATEVALUE(VriDat)&DnevniRaspored[[#This Row],[Vrijeme]],TraženjeDatumaIVremena,0),3),\"\")","v":""}]
[{"$nulls":4},{"$f":"'Vremenski intervali'!E74","v":""},{"$f":"IFERROR(INDEX(PlanerDogađaja[],MATCH(DATEVALUE(VriDat)&DnevniRaspored[[#This Row],[Vrijeme]],TraženjeDatumaIVremena,0),3),\"\")","v":""}]
[{"$nulls":4},{"$f":"'Vremenski intervali'!E75","v":""},{"$f":"IFERROR(INDEX(PlanerDogađaja[],MATCH(DATEVALUE(VriDat)&DnevniRaspored[[#This Row],[Vrijeme]],TraženjeDatumaIVremena,0),3),\"\")","v":""}]

{"sheet":"Planer događaja","index":1,"n_rows":15,"n_cols":8,"rows_kept":15,"merged":[[0,1,0,2],[1,1,4,2],[5,1,6,2],[7,1,7,2]]}
[null,"Planer događaja"]
[null,{"$f":"DAY(VriDat)","v":20},null,null,"DATUM","VRIJEME","OPIS","JEDINSTVENA VRIJEDNOST (IZRAČUNATA)"]
[{"$nulls":4},{"$f":"TODAY()","v":"2022-06-20"},"06:00:00","Buđenje",{"$f":"PlanerDogađaja[[#This Row],[DATUM]]&\"|\"&COUNTIF($E$3:E3,E3)","v":"44732|1"}]
[{"$nulls":4},{"$f":"TODAY()","v":"2022-06-20"},"06:30:00","Tuširanje",{"$f":"PlanerDogađaja[[#This Row],[DATUM]]&\"|\"&COUNTIF($E$3:E4,E4)","v":"44732|2"}]
[{"$nulls":4},"2022-06-20","07:30:00","Odlazak na posao",{"$f":"PlanerDogađaja[[#This Row],[DATUM]]&\"|\"&COUNTIF($E$3:E5,E5)","v":"44732|3"}]
[null,{"$f":"TEXT(VriDat,\"dddd\")","v":"Monday"},null,null,"2022-06-20","08:00:00","Početak smjene",{"$f":"PlanerDogađaja[[#This Row],[DATUM]]&\"|\"&COUNTIF($E$3:E6,E6)","v":"44732|4"}]
[{"$nulls":4},"2022-06-20","10:00:00","Pauza",{"$f":"PlanerDogađaja[[#This Row],[DATUM]]&\"|\"&COUNTIF($E$3:E7,E7)","v":"44732|5"}]
[null,{"$f":"VriDat","v":"20 JUNE 2022"},null,null,"2022-06-20","12:00:00","Ručak",{"$f":"PlanerDogađaja[[#This Row],[DATUM]]&\"|\"&COUNTIF($E$3:E8,E8)","v":"44732|6"}]
[{"$nulls":4},"2022-06-20","13:00:00","Povratak na posao",{"$f":"PlanerDogađaja[[#This Row],[DATUM]]&\"|\"&COUNTIF($E$3:E9,E9)","v":"44732|7"}]
[null,"Odaberite da biste uredili vremenske intervale",null,null,"2022-06-20","13:30:00","Zvati korporacijsko",{"$f":"PlanerDogađaja[[#This Row],[DATUM]]&\"|\"&COUNTIF($E$3:E10,E10)","v":"44732|8"}]
[{"$nulls":4},"2022-06-20","15:00:00","Pauza",{"$f":"PlanerDogađaja[[#This Row],[DATUM]]&\"|\"&COUNTIF($E$3:E11,E11)","v":"44732|9"}]
[null,"Odaberite da biste prikazali dnevni raspored",null,null,"2022-06-20","17:00:00","Kuća",{"$f":"PlanerDogađaja[[#This Row],[DATUM]]&\"|\"&COUNTIF($E$3:E12,E12)","v":"44732|10"}]
[{"$nulls":4},"2022-06-20","18:00:00","Nogometni trening",{"$f":"PlanerDogađaja[[#This Row],[DATUM]]&\"|\"&COUNTIF($E$3:E13,E13)","v":"44732|11"}]
[{"$nulls":4},{"$f":"TODAY()+1","v":"2022-06-21"},"06:30:00","Doručak",{"$f":"PlanerDogađaja[[#This Row],[DATUM]]&\"|\"&COUNTIF($E$3:E15,E14)","v":"44733|2"}]
[{"$nulls":4},{"$f":"TODAY()+1","v":"2022-06-21"},"07:30:00","Odlazak na posao",{"$f":"PlanerDogađaja[[#This Row],[DATUM]]&\"|\"&COUNTIF($E$3:E15,E15)","v":"44733|2"}]

{"sheet":"Vremenski intervali","index":2,"n_rows":75,"n_cols":5,"rows_kept":75,"merged":[[0,1,0,2],[1,1,1,2],[9,1,9,2]]}
[null,"Vremenski intervali"]
[null,"UREĐIVANJE TABLICE VRIJEME",null,null,"Vrijeme"]
[{"$nulls":4},{"$f":"Vrijeme_početka","v":"06:00:00"}]
[null,"Vrijeme početka","06:00:00",null,{"$f":"IFERROR(IF($E3+Inkrement>VriZav,\"\",$E3+Inkrement),\"\")","v":"06:15:00"}]
[{"$nulls":4},"06:30:00"]
[null,"Interval","15 MIN",null,"06:45:00"]
[{"$nulls":4},"07:00:00"]
[null,"Vrijeme završetka","21:00:00",null,"07:15:00"]
[{"$nulls":4},"07:30:00"]
[null,"PRIKAZ RASPOREDA",null,null,"07:45:00"]
[{"$nulls":4},"08:00:00"]
[null,"Odaberite da biste prikazali dnevni raspored",null,null,"08:15:00"]
[{"$nulls":4},"08:30:00"]
[null,"Odaberite da biste dodali novi događaj",null,null,"08:45:00"]
[{"$nulls":4},"09:00:00"]
[{"$nulls":4},"09:15:00"]
[{"$nulls":4},"09:30:00"]
[{"$nulls":4},"09:45:00"]
[{"$nulls":4},"10:00:00"]
[{"$nulls":4},"10:15:00"]
[{"$nulls":4},"10:30:00"]
[{"$nulls":4},"10:45:00"]
[{"$nulls":4},"11:00:00"]
[{"$nulls":4},"11:15:00"]
[{"$nulls":4},"11:30:00"]
[{"$nulls":4},"11:45:00"]
[{"$nulls":4},"12:00:00"]
[{"$nulls":4},"12:15:00"]
[{"$nulls":4},"12:30:00"]
[{"$nulls":4},"12:45:00"]
[{"$nulls":4},"13:00:00"]
[{"$nulls":4},"13:15:00"]
[{"$nulls":4},"13:30:00"]
[{"$nulls":4},"13:45:00"]
[{"$nulls":4},"14:00:00"]
[{"$nulls":4},{"$f":"IFERROR(IF($E35+Inkrement>VriZav,\"\",$E35+Inkrement),\"\")","v":"14:15:00"}]
[{"$nulls":4},"14:30:00"]
[{"$nulls":4},"14:45:00"]
[{"$nulls":4},"15:00:00"]
[{"$nulls":4},"15:15:00"]
[{"$nulls":4},"15:30:00"]
[{"$nulls":4},"15:45:00"]
[{"$nulls":4},"16:00:00"]
[{"$nulls":4},"16:15:00"]
[{"$nulls":4},"16:30:00"]
[{"$nulls":4},"16:45:00"]
[{"$nulls":4},"17:00:00"]
[{"$nulls":4},"17:15:00"]
[{"$nulls":4},"17:30:00"]
[{"$nulls":4},"17:45:00"]
[{"$nulls":4},"18:00:00"]
[{"$nulls":4},"18:15:00"]
[{"$nulls":4},"18:30:00"]
[{"$nulls":4},"18:45:00"]
[{"$nulls":4},"19:00:00"]
[{"$nulls":4},"19:15:00"]
[{"$nulls":4},"19:30:00"]
[{"$nulls":4},"19:45:00"]
[{"$nulls":4},"20:00:00"]
[{"$nulls":4},"20:15:00"]
[{"$nulls":4},"20:30:00"]
[{"$nulls":4},"20:45:00"]
[{"$nulls":4},"21:00:00"]
[{"$nulls":4},""]
[{"$nulls":4},""]
[{"$nulls":4},""]
[{"$nulls":4},""]
[{"$nulls":4},{"$f":"IFERROR(IF($E67+Inkrement>VriZav,\"\",$E67+Inkrement),\"\")","v":""}]
[{"$nulls":4},""]
[{"$nulls":4},""]
[{"$nulls":4},""]
[{"$nulls":4},""]
[{"$nulls":4},""]
[{"$nulls":4},""]
[{"$nulls":4},""]